[Event "*** Titled Tuesday Blitz"]
[Site "Chess.com"]
[Date "2021.04.27"]
[Round "1"]
[White "Fandorine"]
[Black "MalyDominator"]
[Result "1-0"]
[WhiteElo "2914"]
[BlackElo "2454"]
[TimeControl "180+1"]
[EndTime "10:05:42 PDT"]
[Termination "Fandorine won by resignation"]

1. Nf3 {[%clk 0:03:00.9]} 1... Nf6 {[%clk 0:02:57.5]} 2. c4 {[%clk 0:03:01.3]}
2... e6 {[%clk 0:02:56.9]} 3. g3 {[%clk 0:02:59.2]} 3... d5 {[%clk 0:02:57]} 4.
Bg2 {[%clk 0:02:59.7]} 4... Be7 {[%clk 0:02:57.2]} 5. O-O {[%clk 0:03:00]} 5...
O-O {[%clk 0:02:56.6]} 6. d3 {[%clk 0:03:00.4]} 6... c5 {[%clk 0:02:51.6]} 7.
cxd5 {[%clk 0:03:00.6]} 7... Nxd5 {[%clk 0:02:50.8]} 8. d4 {[%clk 0:03:00.8]}
8... Nc6 {[%clk 0:02:27.2]} 9. dxc5 {[%clk 0:02:59.4]} 9... Bxc5 {[%clk
0:02:27]} 10. Qc2 {[%clk 0:02:54.8]} 10... Be7 {[%clk 0:02:22.3]} 11. a3 {[%clk
0:02:53.9]} 11... Bd7 {[%clk 0:02:14.7]} 12. Rd1 {[%clk 0:02:53.7]} 12... Qc7
{[%clk 0:02:09.8]} 13. e4 {[%clk 0:02:52.8]} 13... Nb6 {[%clk 0:02:04.9]} 14.
Bf4 {[%clk 0:02:52.5]} 14... Qc8 {[%clk 0:01:57.7]} 15. Nc3 {[%clk 0:02:52.5]}
15... Rd8 {[%clk 0:01:55.9]} 16. Nb5 {[%clk 0:02:43.4]} 16... a6 {[%clk
0:00:41.4]} 17. Nd6 {[%clk 0:02:38.5]} 17... Bxd6 {[%clk 0:00:39.8]} 18. Bxd6
{[%clk 0:02:39.4]} 18... Ne5 {[%clk 0:00:36.4]} 19. Qc5 {[%clk 0:01:50]} 19...
Nxf3+ {[%clk 0:00:25]} 20. Bxf3 {[%clk 0:01:50.9]} 20... Qxc5 {[%clk 0:00:17.8]}
21. Bxc5 {[%clk 0:01:50.6]} 21... Nc4 {[%clk 0:00:16.5]} 22. Be7 {[%clk
0:01:50.6]} 22... Nxb2 {[%clk 0:00:03]} 23. Rd2 {[%clk 0:01:48.4]} 23... Nc4
{[%clk 0:00:02.3]} 24. Rd4 {[%clk 0:01:48.9]} 24... Ne5 {[%clk 0:00:02.1]} 25.
Bg2 {[%clk 0:01:39.2]} 25... Re8 {[%clk 0:00:02.5]} 26. Bd6 {[%clk 0:01:35.4]}
26... Nc6 {[%clk 0:00:01.7]} 27. Rdd1 {[%clk 0:01:35.9]} 27... Rad8 {[%clk
0:00:01.5]} 28. Bc7 {[%clk 0:01:34.9]} 28... Rc8 {[%clk 0:00:01.8]} 29. Rxd7
{[%clk 0:01:34.1]} 1-0

[Event "*** Titled Tuesday Blitz"]
[Site "Chess.com"]
[Date "2021.04.27"]
[Round "1"]
[White "Willhaven3"]
[Black "david_alex"]
[Result "1-0"]
[WhiteElo "2504"]
[BlackElo "2099"]
[TimeControl "180+1"]
[EndTime "10:05:47 PDT"]
[Termination "Willhaven3 won by resignation"]

1. d4 {[%clk 0:03:00.9]} 1... Nf6 {[%clk 0:02:58.8]} 2. Nf3 {[%clk 0:03:01.2]}
2... e6 {[%clk 0:02:59]} 3. c4 {[%clk 0:03:01.5]} 3... d5 {[%clk 0:02:59.1]} 4.
Nc3 {[%clk 0:03:00.9]} 4... Nbd7 {[%clk 0:02:58.9]} 5. cxd5 {[%clk 0:03:01]}
5... exd5 {[%clk 0:02:59]} 6. Bf4 {[%clk 0:03:01.5]} 6... Be7 {[%clk 0:02:50.3]}
7. e3 {[%clk 0:03:01.9]} 7... c6 {[%clk 0:02:50.3]} 8. h3 {[%clk 0:03:00.9]}
8... O-O {[%clk 0:02:50.1]} 9. Bd3 {[%clk 0:02:59.8]} 9... b6 {[%clk 0:02:49]}
10. Rc1 {[%clk 0:02:57.1]} 10... Bb7 {[%clk 0:02:48.1]} 11. O-O {[%clk
0:02:55.4]} 11... Re8 {[%clk 0:02:48.4]} 12. Bh2 {[%clk 0:02:53.5]} 12... Nf8
{[%clk 0:02:45.2]} 13. Ne5 {[%clk 0:02:51.9]} 13... c5 {[%clk 0:02:41.3]} 14.
dxc5 {[%clk 0:02:36.8]} 14... Bxc5 {[%clk 0:02:34]} 15. Nb5 {[%clk 0:02:26.8]}
15... a6 {[%clk 0:02:24.6]} 16. Nd4 {[%clk 0:02:26.1]} 16... Ng6 {[%clk
0:02:15]} 17. Nef3 {[%clk 0:02:11.6]} 17... Ne4 {[%clk 0:02:12.3]} 18. a3 {[%clk
0:02:08.2]} 18... a5 {[%clk 0:01:57.3]} 19. Bb5 {[%clk 0:01:48.5]} 19... Re7
{[%clk 0:01:52]} 20. Nc6 {[%clk 0:01:44.4]} 20... Bxc6 {[%clk 0:01:44.8]} 21.
Bxc6 {[%clk 0:01:45.3]} 21... Rc8 {[%clk 0:01:40.8]} 22. Qxd5 {[%clk 0:01:42.9]}
22... Qxd5 {[%clk 0:01:11.6]} 23. Bxd5 {[%clk 0:01:43.8]} 23... Rd8 {[%clk
0:01:12]} 24. Bxe4 {[%clk 0:01:29.2]} 24... Rxe4 {[%clk 0:01:10.9]} 25. Rfd1
{[%clk 0:01:29.1]} 25... Ree8 {[%clk 0:00:56]} 26. Kf1 {[%clk 0:01:23.9]} 26...
f6 {[%clk 0:00:54.3]} 27. Ke2 {[%clk 0:01:22.6]} 27... Kf7 {[%clk 0:00:54.4]}
28. Bc7 {[%clk 0:01:11.6]} 28... Rxd1 {[%clk 0:00:53]} 29. Rxd1 {[%clk
0:01:12.5]} 29... Ke6 {[%clk 0:00:53]} 30. Nd4+ {[%clk 0:00:54.8]} 30... Bxd4
{[%clk 0:00:52.7]} 31. Rxd4 {[%clk 0:00:55.6]} 31... Rc8 {[%clk 0:00:50.2]} 32.
Bxb6 {[%clk 0:00:53.3]} 32... Rc2+ {[%clk 0:00:49.8]} 33. Rd2 {[%clk 0:00:53.2]}
1-0

[Event "*** Titled Tuesday Blitz"]
[Site "Chess.com"]
[Date "2021.04.27"]
[Round "1"]
[White "agartha01"]
[Black "rikyshi"]
[Result "1-0"]
[WhiteElo "2542"]
[BlackElo "2201"]
[TimeControl "180+1"]
[EndTime "10:05:50 PDT"]
[Termination "agartha01 won on time"]

1. c4 {[%clk 0:03:00.9]} 1... c5 {[%clk 0:02:56.1]} 2. Nf3 {[%clk 0:03:00]} 2...
Nc6 {[%clk 0:02:51.2]} 3. g3 {[%clk 0:02:59.9]} 3... g6 {[%clk 0:02:50.3]} 4.
Bg2 {[%clk 0:02:58.5]} 4... Bg7 {[%clk 0:02:50.2]} 5. Nc3 {[%clk 0:02:57]} 5...
d6 {[%clk 0:02:41.1]} 6. O-O {[%clk 0:02:55.5]} 6... e6 {[%clk 0:02:41]} 7. d3
{[%clk 0:02:53.3]} 7... Nge7 {[%clk 0:02:41]} 8. Rb1 {[%clk 0:02:53.1]} 8... O-O
{[%clk 0:02:39.7]} 9. a3 {[%clk 0:02:53]} 9... Qd7 {[%clk 0:02:39.7]} 10. Bd2
{[%clk 0:02:52.2]} 10... b6 {[%clk 0:02:39.4]} 11. b4 {[%clk 0:02:49.1]} 11...
Bb7 {[%clk 0:02:34.8]} 12. bxc5 {[%clk 0:02:31.1]} 12... bxc5 {[%clk 0:02:27.3]}
13. Qa4 {[%clk 0:02:17.7]} 13... Nf5 {[%clk 0:01:32.3]} 14. Ne1 {[%clk
0:01:59.2]} 14... Rfc8 {[%clk 0:01:09.8]} 15. Nc2 {[%clk 0:01:56.8]} 15... Qe7
{[%clk 0:00:23.4]} 16. Ne4 {[%clk 0:01:40.7]} 16... d5 {[%clk 0:00:16.7]} 17.
Bg5 {[%clk 0:01:35.7]} 17... f6 {[%clk 0:00:12.8]} 18. Nxf6+ {[%clk 0:01:24.8]}
18... Bxf6 {[%clk 0:00:12.6]} 19. Bxf6 {[%clk 0:01:25.5]} 19... Qxf6 {[%clk
0:00:13.1]} 20. Rxb7 {[%clk 0:01:26]} 20... dxc4 {[%clk 0:00:12.1]} 21. Bxc6
{[%clk 0:01:19.8]} 21... cxd3 {[%clk 0:00:09]} 22. exd3 {[%clk 0:01:20.1]} 22...
e5 {[%clk 0:00:05.8]} 23. Be4 {[%clk 0:01:15.5]} 23... Nd4 {[%clk 0:00:02.6]}
24. Nxd4 {[%clk 0:01:14.8]} 24... exd4 {[%clk 0:00:01.9]} 25. Qc4+ {[%clk
0:01:14.5]} 1-0

[Event "*** Titled Tuesday Blitz"]
[Site "Chess.com"]
[Date "2021.04.27"]
[Round "1"]
[White "Guzman70"]
[Black "Nikolakis2014"]
[Result "0-1"]
[WhiteElo "2291"]
[BlackElo "2616"]
[TimeControl "180+1"]
[EndTime "10:05:51 PDT"]
[Termination "Nikolakis2014 won by resignation"]

1. d4 {[%clk 0:02:57.3]} 1... Nf6 {[%clk 0:02:59.6]} 2. Bf4 {[%clk 0:02:57.2]}
2... d5 {[%clk 0:02:59]} 3. e3 {[%clk 0:02:57.1]} 3... e6 {[%clk 0:02:59.4]} 4.
Nd2 {[%clk 0:02:53.3]} 4... Bd6 {[%clk 0:02:59.3]} 5. Bg3 {[%clk 0:02:52.8]}
5... O-O {[%clk 0:02:59.4]} 6. Ngf3 {[%clk 0:02:52.2]} 6... c5 {[%clk
0:02:59.6]} 7. c3 {[%clk 0:02:49.3]} 7... Qc7 {[%clk 0:02:59.8]} 8. dxc5 {[%clk
0:02:33.8]} 8... Qxc5 {[%clk 0:02:59.1]} 9. Nb3 {[%clk 0:02:33.9]} 9... Qc7
{[%clk 0:02:56.7]} 10. Nbd4 {[%clk 0:02:29.9]} 10... Bxg3 {[%clk 0:02:51.5]} 11.
hxg3 {[%clk 0:02:26.6]} 11... Nc6 {[%clk 0:02:51.4]} 12. Bd3 {[%clk 0:02:16.9]}
12... e5 {[%clk 0:02:41.3]} 13. Nxc6 {[%clk 0:02:11.3]} 13... bxc6 {[%clk
0:02:39.8]} 14. Be2 {[%clk 0:02:07.9]} 14... Bf5 {[%clk 0:02:28.1]} 15. Nh4
{[%clk 0:02:00.8]} 15... Be4 {[%clk 0:02:25.7]} 16. Bd3 {[%clk 0:01:56.5]} 16...
Rab8 {[%clk 0:02:23]} 17. Bxe4 {[%clk 0:01:50.3]} 17... dxe4 {[%clk 0:02:18.8]}
18. g4 {[%clk 0:01:34.2]} 18... Rfd8 {[%clk 0:01:21.4]} 19. Qe2 {[%clk
0:01:32.9]} 19... g6 {[%clk 0:01:19.3]} 20. g5 {[%clk 0:01:26.3]} 20... Nd5
{[%clk 0:01:18.3]} 21. Qg4 {[%clk 0:01:07.2]} 21... Rxb2 {[%clk 0:01:12.9]} 22.
Qxe4 {[%clk 0:00:56.2]} 22... Nxc3 {[%clk 0:01:08.5]} 23. Qf3 {[%clk 0:00:55.6]}
23... Re2+ {[%clk 0:01:03.5]} 24. Kf1 {[%clk 0:00:54.8]} 24... Rdd2 {[%clk
0:01:03.5]} 25. Rc1 {[%clk 0:00:45.5]} 25... Qd7 {[%clk 0:00:51.7]} 26. g3
{[%clk 0:00:37.8]} 26... Rxf2+ {[%clk 0:00:46.7]} 27. Qxf2 {[%clk 0:00:37.1]}
27... Rxf2+ {[%clk 0:00:46.7]} 0-1

[Event "*** Titled Tuesday Blitz"]
[Site "Chess.com"]
[Date "2021.04.27"]
[Round "1"]
[White "Vasily85"]
[Black "Abund"]
[Result "0-1"]
[WhiteElo "2402"]
[BlackElo "2745"]
[TimeControl "180+1"]
[EndTime "10:05:52 PDT"]
[Termination "Abund won by resignation"]

1. Nf3 {[%clk 0:02:31.5]} 1... Nf6 {[%clk 0:02:55.6]} 2. g3 {[%clk 0:02:31.6]}
2... g6 {[%clk 0:02:55.7]} 3. Bg2 {[%clk 0:02:31.9]} 3... Bg7 {[%clk 0:02:55.8]}
4. O-O {[%clk 0:02:32.5]} 4... O-O {[%clk 0:02:56.5]} 5. d4 {[%clk 0:02:33.1]}
5... d5 {[%clk 0:02:56.2]} 6. c4 {[%clk 0:02:32.8]} 6... c6 {[%clk 0:02:55.8]}
7. Qb3 {[%clk 0:02:32.2]} 7... dxc4 {[%clk 0:02:54.4]} 8. Qxc4 {[%clk
0:02:33.1]} 8... Bf5 {[%clk 0:02:54.1]} 9. Nc3 {[%clk 0:02:31.6]} 9... Nbd7
{[%clk 0:02:54.1]} 10. Rd1 {[%clk 0:02:28.9]} 10... Rc8 {[%clk 0:02:53.5]} 11.
Bf4 {[%clk 0:02:27.6]} 11... b5 {[%clk 0:02:52.5]} 12. Qb3 {[%clk 0:02:20]}
12... Ne4 {[%clk 0:02:32.5]} 13. Rac1 {[%clk 0:02:19.4]} 13... Qb6 {[%clk
0:02:11.6]} 14. Nxe4 {[%clk 0:02:14.5]} 14... Bxe4 {[%clk 0:02:11.5]} 15. Ne5
{[%clk 0:02:15.1]} 15... Nxe5 {[%clk 0:01:55.6]} 16. Bxe4 {[%clk 0:02:11.3]}
16... Nc4 {[%clk 0:01:55.4]} 17. Bd3 {[%clk 0:02:01.9]} 17... Bxd4 {[%clk
0:01:48.1]} 18. e3 {[%clk 0:01:59.6]} 18... Bxb2 {[%clk 0:01:30.8]} 19. Rc2
{[%clk 0:01:39.4]} 19... Bg7 {[%clk 0:01:28.3]} 20. Bxc4 {[%clk 0:01:33.7]}
20... bxc4 {[%clk 0:01:26.6]} 21. Qxc4 {[%clk 0:01:34.6]} 21... Qb7 {[%clk
0:01:07.9]} 22. e4 {[%clk 0:01:28.5]} 22... c5 {[%clk 0:01:05.2]} 23. Be3 {[%clk
0:01:27]} 23... Rfd8 {[%clk 0:01:00.5]} 24. Rxd8+ {[%clk 0:01:24.1]} 24... Rxd8
{[%clk 0:01:00.5]} 25. Bxc5 {[%clk 0:01:17.5]} 25... Rd1+ {[%clk 0:00:54.8]} 26.
Kg2 {[%clk 0:01:17.4]} 26... h5 {[%clk 0:00:46.5]} 27. h4 {[%clk 0:01:13.5]}
27... e6 {[%clk 0:00:40.9]} 28. Qb4 {[%clk 0:01:11.4]} 28... Qxb4 {[%clk
0:00:37.3]} 29. Bxb4 {[%clk 0:01:12.3]} 29... Rd4 {[%clk 0:00:37.7]} 30. Bc5
{[%clk 0:01:11.2]} 30... Ra4 {[%clk 0:00:35.5]} 31. Ba3 {[%clk 0:01:09.6]} 31...
Rxa3 {[%clk 0:00:35.1]} 0-1

[Event "*** Titled Tuesday Blitz"]
[Site "Chess.com"]
[Date "2021.04.27"]
[Round "1"]
[White "mitrabhaa"]
[Black "vanyakuba"]
[Result "1-0"]
[WhiteElo "2759"]
[BlackElo "2409"]
[TimeControl "180+1"]
[EndTime "10:05:53 PDT"]
[Termination "mitrabhaa won on time"]

1. g3 {[%clk 0:03:00.7]} 1... d5 {[%clk 0:03:00]} 2. Bg2 {[%clk 0:02:59.9]} 2...
Nf6 {[%clk 0:03:00.3]} 3. c4 {[%clk 0:03:00.1]} 3... e6 {[%clk 0:03:00.1]} 4.
Nf3 {[%clk 0:03:00.3]} 4... c5 {[%clk 0:03:00.4]} 5. O-O {[%clk 0:03:00.6]} 5...
Nc6 {[%clk 0:03:00.5]} 6. d4 {[%clk 0:03:01]} 6... Be7 {[%clk 0:02:59.9]} 7.
cxd5 {[%clk 0:02:59.7]} 7... exd5 {[%clk 0:03:00.8]} 8. Nc3 {[%clk 0:02:59.4]}
8... O-O {[%clk 0:03:00.6]} 9. Bg5 {[%clk 0:02:59.2]} 9... c4 {[%clk 0:03:00.6]}
10. Ne5 {[%clk 0:02:59]} 10... Be6 {[%clk 0:03:00.4]} 11. Nxc6 {[%clk
0:02:55.6]} 11... bxc6 {[%clk 0:03:00.3]} 12. b3 {[%clk 0:02:56.2]} 12... h6
{[%clk 0:02:30.3]} 13. Bxf6 {[%clk 0:02:54.1]} 13... Bxf6 {[%clk 0:02:31.2]} 14.
Rc1 {[%clk 0:02:44.9]} 14... Rc8 {[%clk 0:02:12]} 15. bxc4 {[%clk 0:02:37.5]}
15... dxc4 {[%clk 0:02:11.7]} 16. e3 {[%clk 0:02:38.4]} 16... Qe7 {[%clk
0:01:47.4]} 17. Qa4 {[%clk 0:02:36.4]} 17... Rfd8 {[%clk 0:01:36.2]} 18. Ne4
{[%clk 0:02:31.1]} 18... Bd5 {[%clk 0:01:25.4]} 19. Nc5 {[%clk 0:02:31]} 19...
h5 {[%clk 0:01:05.3]} 20. Rxc4 {[%clk 0:02:28.1]} 20... Bxc4 {[%clk 0:00:51.5]}
21. Qxc4 {[%clk 0:02:29]} 21... g6 {[%clk 0:00:51.7]} 22. h4 {[%clk 0:02:27.1]}
22... Kg7 {[%clk 0:00:51.1]} 23. Bf3 {[%clk 0:02:27]} 23... g5 {[%clk
0:00:33.3]} 24. hxg5 {[%clk 0:02:24.8]} 24... Bxg5 {[%clk 0:00:32.7]} 25. Bxh5
{[%clk 0:02:23.1]} 25... Rh8 {[%clk 0:00:32.5]} 26. Bf3 {[%clk 0:02:22.7]} 26...
Rh6 {[%clk 0:00:10.8]} 27. Ne4 {[%clk 0:02:14.9]} 27... Rch8 {[%clk 0:00:08.4]}
28. Qc5 {[%clk 0:02:12.6]} 28... Bf6 {[%clk 0:00:04.7]} 29. Qxe7 {[%clk
0:02:12]} 29... Bxe7 {[%clk 0:00:04.4]} 30. Rc1 {[%clk 0:02:12]} 30... f5 {[%clk
0:00:02.9]} 31. Nd2 {[%clk 0:02:10.6]} 31... Rh2 {[%clk 0:00:02.6]} 32. Nf1
{[%clk 0:02:10]} 32... R2h6 {[%clk 0:00:02.4]} 33. Bg2 {[%clk 0:02:09.1]} 33...
Rc8 {[%clk 0:00:01.8]} 34. Nd2 {[%clk 0:02:08]} 34... c5 {[%clk 0:00:02.1]} 35.
Rc4 {[%clk 0:02:03.1]} 35... Rb6 {[%clk 0:00:01.3]} 36. Nb3 {[%clk 0:02:01.2]}
36... Rbb8 {[%clk 0:00:01.4]} 37. dxc5 {[%clk 0:02:01]} 37... Kf6 {[%clk
0:00:01.9]} 38. c6 {[%clk 0:02:00.9]} 38... Rb6 {[%clk 0:00:01.4]} 39. Bf3
{[%clk 0:02:00.9]} 39... Bd6 {[%clk 0:00:01.7]} 40. Kg2 {[%clk 0:02:01.2]} 40...
Be5 {[%clk 0:00:02.2]} 41. Ra4 {[%clk 0:02:00.2]} 41... Rc7 {[%clk 0:00:02.2]}
42. Nc5 {[%clk 0:01:59.4]} 42... Kg6 {[%clk 0:00:01.4]} 43. Nd7 {[%clk
0:01:58.6]} 1-0

[Event "*** Titled Tuesday Blitz"]
[Site "Chess.com"]
[Date "2021.04.27"]
[Round "1"]
[White "mamonika"]
[Black "Sergey85Rodchenkov"]
[Result "0-1"]
[WhiteElo "2044"]
[BlackElo "2493"]
[TimeControl "180+1"]
[EndTime "10:05:54 PDT"]
[Termination "Sergey85Rodchenkov won on time"]

1. e4 {[%clk 0:03:00.9]} 1... c5 {[%clk 0:02:59.1]} 2. Nf3 {[%clk 0:03:00.9]}
2... d6 {[%clk 0:02:59.3]} 3. d4 {[%clk 0:03:01.2]} 3... cxd4 {[%clk 0:02:59.8]}
4. Nxd4 {[%clk 0:03:02.1]} 4... Nf6 {[%clk 0:02:59.9]} 5. Nc3 {[%clk 0:03:01.7]}
5... a6 {[%clk 0:03:00.2]} 6. Be2 {[%clk 0:02:59.3]} 6... e5 {[%clk 0:02:59.4]}
7. Nb3 {[%clk 0:02:57.4]} 7... Be7 {[%clk 0:02:59.5]} 8. Be3 {[%clk 0:02:55]}
8... Be6 {[%clk 0:02:59.4]} 9. Bf3 {[%clk 0:02:48.7]} 9... Nbd7 {[%clk
0:02:57.2]} 10. O-O {[%clk 0:02:47.2]} 10... Rc8 {[%clk 0:02:54.7]} 11. Qd2
{[%clk 0:02:41.3]} 11... O-O {[%clk 0:02:51.5]} 12. Rfd1 {[%clk 0:02:23.9]}
12... b5 {[%clk 0:02:50.9]} 13. a4 {[%clk 0:01:58.2]} 13... b4 {[%clk
0:02:50.2]} 14. Nd5 {[%clk 0:01:48.1]} 14... Nxd5 {[%clk 0:02:32]} 15. exd5
{[%clk 0:01:49]} 15... Bf5 {[%clk 0:02:32.2]} 16. Qxb4 {[%clk 0:01:39.6]} 16...
Bxc2 {[%clk 0:02:30.2]} 17. Na5 {[%clk 0:01:01.7]} 17... Bxd1 {[%clk 0:02:20.4]}
18. Rxd1 {[%clk 0:00:59.8]} 18... Nb8 {[%clk 0:02:04.9]} 19. Bb6 {[%clk
0:00:35.8]} 19... Qd7 {[%clk 0:02:01.1]} 20. Nc4 {[%clk 0:00:29.9]} 20... g6
{[%clk 0:01:40.1]} 21. a5 {[%clk 0:00:28.1]} 21... Qf5 {[%clk 0:01:33.3]} 22.
Ne3 {[%clk 0:00:10.9]} 22... Qf4 {[%clk 0:01:27.9]} 23. Qxf4 {[%clk 0:00:03.8]}
23... exf4 {[%clk 0:01:27.4]} 24. Nf1 {[%clk 0:00:04.3]} 24... Nd7 {[%clk
0:01:24.1]} 25. Bd4 {[%clk 0:00:03.2]} 25... Bf6 {[%clk 0:01:18.5]} 26. Bxf6
{[%clk 0:00:02]} 26... Nxf6 {[%clk 0:01:18.6]} 27. Be2 {[%clk 0:00:02.4]} 27...
Rb8 {[%clk 0:01:16.5]} 0-1

[Event "*** Titled Tuesday Blitz"]
[Site "Chess.com"]
[Date "2021.04.27"]
[Round "1"]
[White "AniJak"]
[Black "PolandHussars"]
[Result "0-1"]
[WhiteElo "2292"]
[BlackElo "2621"]
[TimeControl "180+1"]
[EndTime "10:05:56 PDT"]
[Termination "PolandHussars won by resignation"]

1. e4 {[%clk 0:03:00.9]} 1... e5 {[%clk 0:02:56.5]} 2. Nc3 {[%clk 0:02:58.8]}
2... Nf6 {[%clk 0:02:56.2]} 3. g3 {[%clk 0:02:58.3]} 3... d5 {[%clk 0:02:52.1]}
4. exd5 {[%clk 0:02:58]} 4... Nxd5 {[%clk 0:02:53]} 5. Bg2 {[%clk 0:02:58.2]}
5... Nxc3 {[%clk 0:02:53.6]} 6. bxc3 {[%clk 0:02:58.8]} 6... Bd6 {[%clk
0:02:54.2]} 7. d3 {[%clk 0:02:57.8]} 7... O-O {[%clk 0:02:54.4]} 8. Nf3 {[%clk
0:02:53.3]} 8... c6 {[%clk 0:02:51.3]} 9. O-O {[%clk 0:02:51.7]} 9... Nd7 {[%clk
0:02:46.3]} 10. Re1 {[%clk 0:02:51.3]} 10... Re8 {[%clk 0:02:44.7]} 11. Rb1
{[%clk 0:02:47.2]} 11... Nf6 {[%clk 0:02:40.3]} 12. c4 {[%clk 0:02:44.9]} 12...
Qc7 {[%clk 0:02:39.4]} 13. Ng5 {[%clk 0:02:41.2]} 13... h6 {[%clk 0:02:34.4]}
14. Ne4 {[%clk 0:02:40.9]} 14... Nxe4 {[%clk 0:02:34.9]} 15. Bxe4 {[%clk
0:02:39.8]} 15... f5 {[%clk 0:02:26.4]} 16. Qh5 {[%clk 0:02:34.3]} 16... Rf8
{[%clk 0:02:17.8]} 17. Bg2 {[%clk 0:02:26.3]} 17... Be6 {[%clk 0:02:02.1]} 18.
Bb2 {[%clk 0:02:23.1]} 18... Rae8 {[%clk 0:01:58.7]} 19. c5 {[%clk 0:02:21]}
19... Bxc5 {[%clk 0:01:57.5]} 20. Bxe5 {[%clk 0:02:15.9]} 20... Qd7 {[%clk
0:01:57.1]} 21. Qg6 {[%clk 0:01:49.2]} 21... Bxa2 {[%clk 0:01:40.7]} 22. Ra1
{[%clk 0:01:20.7]} 22... Qf7 {[%clk 0:01:37.5]} 23. Qxf7+ {[%clk 0:01:06.1]}
23... Bxf7 {[%clk 0:01:36.7]} 24. d4 {[%clk 0:01:06.5]} 24... Bb6 {[%clk
0:01:31.9]} 25. Bd6 {[%clk 0:01:03.6]} 25... Rxe1+ {[%clk 0:01:30.9]} 26. Rxe1
{[%clk 0:01:04.5]} 26... Re8 {[%clk 0:01:31]} 27. Rxe8+ {[%clk 0:00:59.3]} 27...
Bxe8 {[%clk 0:01:31.9]} 28. Be5 {[%clk 0:00:58.8]} 28... Bf7 {[%clk 0:01:30.2]}
29. Bf1 {[%clk 0:00:58.5]} 29... a5 {[%clk 0:01:30.1]} 30. Bd3 {[%clk
0:00:57.6]} 30... g6 {[%clk 0:01:29.9]} 31. c4 {[%clk 0:00:29.9]} 31... a4
{[%clk 0:01:28.9]} 32. c5 {[%clk 0:00:29.5]} 32... Ba5 {[%clk 0:01:28.4]} 33. d5
{[%clk 0:00:17.5]} 33... Bxd5 {[%clk 0:01:27.6]} 34. Kf1 {[%clk 0:00:17.5]}
34... a3 {[%clk 0:01:26.9]} 35. Ke2 {[%clk 0:00:16.3]} 35... a2 {[%clk
0:01:26.5]} 36. Kd1 {[%clk 0:00:15.9]} 36... Bb4 {[%clk 0:01:26.5]} 0-1

[Event "*** Titled Tuesday Blitz"]
[Site "Chess.com"]
[Date "2021.04.27"]
[Round "1"]
[White "MarcoRiehle"]
[Black "tgpgoat"]
[Result "1-0"]
[WhiteElo "2704"]
[BlackElo "2361"]
[TimeControl "180+1"]
[EndTime "10:05:58 PDT"]
[Termination "MarcoRiehle won by resignation"]

1. e4 {[%clk 0:03:00.9]} 1... c5 {[%clk 0:02:51.5]} 2. a3 {[%clk 0:03:00.4]}
2... d5 {[%clk 0:02:50.2]} 3. exd5 {[%clk 0:02:59]} 3... Qxd5 {[%clk 0:02:51.1]}
4. Nc3 {[%clk 0:02:59.4]} 4... Qd8 {[%clk 0:02:50.6]} 5. Nf3 {[%clk 0:02:59]}
5... e6 {[%clk 0:02:50.7]} 6. d4 {[%clk 0:02:58.7]} 6... cxd4 {[%clk 0:02:50.5]}
7. Qxd4 {[%clk 0:02:59.6]} 7... Qxd4 {[%clk 0:02:49.7]} 8. Nxd4 {[%clk
0:03:00.5]} 8... Nf6 {[%clk 0:02:48.6]} 9. Ndb5 {[%clk 0:02:55.1]} 9... Na6
{[%clk 0:02:48.3]} 10. Bf4 {[%clk 0:02:53.6]} 10... Bd7 {[%clk 0:02:46.8]} 11.
O-O-O {[%clk 0:02:51.7]} 11... Bc5 {[%clk 0:02:45.8]} 12. Nd6+ {[%clk
0:02:47.3]} 12... Bxd6 {[%clk 0:02:45.5]} 13. Bxd6 {[%clk 0:02:48.2]} 13... Bc6
{[%clk 0:02:41.9]} 14. f3 {[%clk 0:02:41.7]} 14... O-O-O {[%clk 0:02:40.8]} 15.
Bxa6 {[%clk 0:02:22.1]} 15... bxa6 {[%clk 0:02:41.7]} 16. Be5 {[%clk 0:02:20.6]}
16... Rxd1+ {[%clk 0:02:05.2]} 17. Rxd1 {[%clk 0:02:19.7]} 17... Rd8 {[%clk
0:02:06.1]} 18. Bxf6 {[%clk 0:02:17.3]} 18... Rxd1+ {[%clk 0:02:05.1]} 19. Kxd1
{[%clk 0:02:18.2]} 19... gxf6 {[%clk 0:02:05.6]} 20. Kd2 {[%clk 0:02:16.6]}
20... Kb7 {[%clk 0:02:06.5]} 21. Ne2 {[%clk 0:02:13.1]} 21... f5 {[%clk
0:02:04.8]} 22. c4 {[%clk 0:02:10.5]} 22... Kb6 {[%clk 0:02:02.9]} 23. Kc3
{[%clk 0:02:07]} 23... a5 {[%clk 0:02:03]} 24. b3 {[%clk 0:02:05.5]} 24... Bb7
{[%clk 0:02:00.6]} 25. Nd4 {[%clk 0:02:03.3]} 25... Kc5 {[%clk 0:01:59.9]} 26.
g3 {[%clk 0:01:59.1]} 26... e5 {[%clk 0:01:52.5]} 27. b4+ {[%clk 0:01:57.9]}
27... axb4+ {[%clk 0:01:52.1]} 28. axb4+ {[%clk 0:01:58.8]} 28... Kb6 {[%clk
0:01:50.5]} 29. c5+ {[%clk 0:01:50.6]} 29... Kc7 {[%clk 0:01:49.7]} 30. Nxf5
{[%clk 0:01:50.6]} 30... Bxf3 {[%clk 0:01:48.8]} 31. b5 {[%clk 0:01:45.7]} 31...
Be2 {[%clk 0:01:43.1]} 32. Nd6 {[%clk 0:01:41.7]} 32... f5 {[%clk 0:01:39.7]}
33. Kd2 {[%clk 0:01:25.5]} 33... Bf1 {[%clk 0:01:38.4]} 34. Ke3 {[%clk 0:01:26]}
34... h6 {[%clk 0:01:28.9]} 35. h4 {[%clk 0:01:19.9]} 35... h5 {[%clk
0:01:23.7]} 36. Kf2 {[%clk 0:01:13.8]} 36... Bd3 {[%clk 0:01:22.2]} 37. Ke3
{[%clk 0:01:14.3]} 37... Bf1 {[%clk 0:01:21.9]} 38. Kd2 {[%clk 0:01:13.4]} 38...
f4 {[%clk 0:01:18.2]} 39. gxf4 {[%clk 0:01:13.4]} 39... exf4 {[%clk 0:01:19.1]}
40. Ke1 {[%clk 0:01:13.8]} 40... Bd3 {[%clk 0:01:18.4]} 41. Kf2 {[%clk
0:01:13.8]} 41... a5 {[%clk 0:01:07.4]} 42. b6+ {[%clk 0:01:03.2]} 42... Kc6
{[%clk 0:01:07.4]} 43. b7 {[%clk 0:01:03.4]} 43... Kc7 {[%clk 0:01:07.5]} 44. c6
{[%clk 0:01:01.6]} 44... a4 {[%clk 0:01:06.4]} 45. Ne8+ {[%clk 0:01:01.6]} 45...
Kb8 {[%clk 0:01:04.9]} 46. Nf6 {[%clk 0:01:02.2]} 46... a3 {[%clk 0:01:03.3]}
47. Nd7+ {[%clk 0:01:01.1]} 47... Kc7 {[%clk 0:00:59.6]} 48. b8=Q+ {[%clk
0:01:02]} 48... Kxc6 {[%clk 0:01:00.4]} 49. Ne5+ {[%clk 0:00:59.9]} 1-0